[Event "FIDE World Rapid Chess Championship 2021"]
[White "Jobava, Baadur"]
[Black "Tari, Aryan"]
[WhiteFideId "13601520"]
[BlackFideId "1510045"]
[WhiteElo "2679"]
[BlackElo "2542"]
[Result "1/2-1/2"]
[Round "13"]
[TimeControl "900+10"]
[Date "2021.12.28"]
[WhiteClock "0:02:05"]
[BlackClock "0:03:01"]

1. e4 {[%clk 0:15:00]}  e5 {[%clk 0:15:00]} 2. Nf3 {[%clk 0:15:00]}  Nc6 {[%clk 0:15:00]} 3. Bc4 {[%clk 0:15:52]}  Nf6 {[%clk 0:15:57]} 4. d3 {[%clk 0:15:52]}  Bc5 {[%clk 0:15:57]} 5. c3 {[%clk 0:15:52]}  d6 {[%clk 0:15:57]} 6. b4 {[%clk 0:15:52]}  Bb6 {[%clk 0:15:57]} 7. O-O {[%clk 0:15:52]}  O-O {[%clk 0:15:57]} 8. Nbd2 {[%clk 0:15:52]}  Ne7 {[%clk 0:15:57]} 9. Bb3 {[%clk 0:15:52]}  c6 {[%clk 0:15:57]} 10. Nc4 {[%clk 0:15:52]}  Bc7 {[%clk 0:15:57]} 11. Bg5 {[%clk 0:15:52]}  Ng6 {[%clk 0:15:57]} 12. Ne3 {[%clk 0:15:52]}  h6 {[%clk 0:13:34]} 13. Bxf6 {[%clk 0:16:28]}  Qxf6 {[%clk 0:13:34]} 14. a4 {[%clk 0:16:28]}  Kh8 {[%clk 0:13:34]} 15. Re1 {[%clk 0:16:28]}  Be6 {[%clk 0:13:34]} 16. d4 {[%clk 0:16:15]}  Bxb3 {[%clk 0:12:12]} 17. Qxb3 {[%clk 0:14:06]}  Nf4 {[%clk 0:12:12]} 18. Rad1 {[%clk 0:14:06]}  exd4 {[%clk 0:12:12]} 19. cxd4 {[%clk 0:14:06]}  Rae8 {[%clk 0:10:13]} 20. g3 {[%clk 0:13:12]}  Nh3+ {[%clk 0:10:13]} 21. Kg2 {[%clk 0:07:59]}  Rxe4 {[%clk 0:10:13]} 22. Qc2 {[%clk 0:07:59]}  Rfe8 {[%clk 0:07:53]} 23. Ng4 {[%clk 0:07:52]}  Qg6 {[%clk 0:06:28]} 24. Nfe5 {[%clk 0:06:08]}  Nf4+ {[%clk 0:04:37]} 25. gxf4 {[%clk 0:03:29]}  R8xe5 {[%clk 0:03:55]} 26. dxe5 {[%clk 0:03:29]}  Qxg4+ {[%clk 0:03:55]} 27. Kf1 {[%clk 0:02:05]}  Qh3+ {[%clk 0:03:01]} 28. Kg1 {[%clk 0:02:05]}  Qg4+ {[%clk 0:03:01]} 1/2-1/2


[Site "http://www.Chess.com"]

[Event "FIDE World Rapid Chess Championship 2021"]
[White "Donchenko, Alexander"]
[Black "Svane, Rasmus"]
[WhiteFideId "24603295"]
[BlackFideId "4657101"]
[WhiteElo "2535"]
[BlackElo "2677"]
[Result "0-1"]
[Round "13"]
[TimeControl "900+10"]
[Date "2021.12.28"]
[WhiteClock "0:00:42"]
[BlackClock "0:04:05"]

1. d4 {[%clk 0:15:00]}  Nf6 {[%clk 0:15:00]} 2. c4 {[%clk 0:15:00]}  e6 {[%clk 0:15:00]} 3. Nc3 {[%clk 0:15:00]}  Bb4 {[%clk 0:15:00]} 4. f3 {[%clk 0:15:43]}  c5 {[%clk 0:15:38]} 5. d5 {[%clk 0:15:43]}  b5 {[%clk 0:15:38]} 6. e4 {[%clk 0:15:43]}  d6 {[%clk 0:15:38]} 7. Ne2 {[%clk 0:15:43]}  a6 {[%clk 0:15:38]} 8. Bf4 {[%clk 0:15:43]}  exd5 {[%clk 0:15:38]} 9. cxd5 {[%clk 0:15:43]}  O-O {[%clk 0:14:42]} 10. Ng3 {[%clk 0:14:46]}  c4 {[%clk 0:14:42]} 11. Be2 {[%clk 0:13:25]}  Bc5 {[%clk 0:13:20]} 12. Qd2 {[%clk 0:13:25]}  Nbd7 {[%clk 0:13:20]} 13. Nf5 {[%clk 0:13:25]}  Ne5 {[%clk 0:12:58]} 14. g4 {[%clk 0:11:42]}  Bxf5 {[%clk 0:12:41]} 15. gxf5 {[%clk 0:11:36]}  Qa5 {[%clk 0:12:41]} 16. Kf1 {[%clk 0:11:36]}  Rfc8 {[%clk 0:10:10]} 17. Bg5 {[%clk 0:09:31]}  b4 {[%clk 0:10:10]} 18. Bxf6 {[%clk 0:09:31]}  gxf6 {[%clk 0:10:10]} 19. Nd1 {[%clk 0:09:31]}  c3 {[%clk 0:09:05]} 20. bxc3 {[%clk 0:08:18]}  bxc3 {[%clk 0:07:23]} 21. Qh6 {[%clk 0:08:18]}  c2 {[%clk 0:07:23]} 22. h4 {[%clk 0:07:30]}  cxd1=Q+ {[%clk 0:06:23]} 23. Rxd1 {[%clk 0:01:13]}  Nd7 {[%clk 0:06:23]} 24. f4 {[%clk 0:01:13]}  Kh8 {[%clk 0:06:23]} 25. e5 {[%clk 0:00:42]}  Qc3 {[%clk 0:04:05]} 26. Bh5 {[%clk 0:00:42]}  Qe3 {[%clk 0:04:05]} 27. Kg2 {[%clk 0:00:42]}  Rg8+ {[%clk 0:04:05]} 28. Bg6 {[%clk 0:00:42]}  fxg6 {[%clk 0:04:05]} 0-1


[Site "http://www.Chess.com"]

[Event "FIDE World Rapid Chess Championship 2021"]
[White "Paravyan, David"]
[Black "Czarnota, Pawel"]
[WhiteFideId "4194985"]
[BlackFideId "1121219"]
[WhiteElo "2671"]
[BlackElo "2511"]
[Result "1/2-1/2"]
[Round "13"]
[TimeControl "900+10"]
[Date "2021.12.28"]
[WhiteClock "0:00:23"]
[BlackClock "0:00:11"]

1. e4 {[%clk 0:15:00]}  c5 {[%clk 0:15:00]} 2. Nf3 {[%clk 0:15:00]}  d6 {[%clk 0:15:00]} 3. d4 {[%clk 0:15:00]}  cxd4 {[%clk 0:15:00]} 4. Nxd4 {[%clk 0:16:14]}  Nf6 {[%clk 0:15:56]} 5. Nc3 {[%clk 0:16:14]}  Nc6 {[%clk 0:15:56]} 6. Bg5 {[%clk 0:16:14]}  e6 {[%clk 0:15:56]} 7. Qd2 {[%clk 0:16:14]}  a6 {[%clk 0:15:56]} 8. O-O-O {[%clk 0:16:14]}  Bd7 {[%clk 0:15:56]} 9. Nxc6 {[%clk 0:16:14]}  Bxc6 {[%clk 0:15:56]} 10. Bd3 {[%clk 0:16:14]}  Be7 {[%clk 0:15:56]} 11. Kb1 {[%clk 0:16:14]}  b5 {[%clk 0:15:56]} 12. f3 {[%clk 0:16:14]}  Qc7 {[%clk 0:15:56]} 13. Ne2 {[%clk 0:16:14]}  Rb8 {[%clk 0:15:56]} 14. Nd4 {[%clk 0:15:48]}  Bd7 {[%clk 0:15:15]} 15. c3 {[%clk 0:15:48]}  a5 {[%clk 0:15:15]} 16. Rc1 {[%clk 0:15:48]}  e5 {[%clk 0:15:15]} 17. Nc2 {[%clk 0:15:02]}  O-O {[%clk 0:14:05]} 18. h4 {[%clk 0:15:02]}  Be6 {[%clk 0:14:05]} 19. Ne3 {[%clk 0:15:02]}  Rfd8 {[%clk 0:14:05]} 20. Qe2 {[%clk 0:14:02]}  Qc5 {[%clk 0:13:03]} 21. Rhd1 {[%clk 0:14:02]}  h6 {[%clk 0:13:07]} 22. Bxf6 {[%clk 0:12:23]}  Bxf6 {[%clk 0:13:07]} 23. g3 {[%clk 0:12:23]}  d5 {[%clk 0:10:03]} 24. exd5 {[%clk 0:12:39]}  Bxd5 {[%clk 0:10:03]} 25. Bh7+ {[%clk 0:12:39]}  Kf8 {[%clk 0:10:03]} 26. Nxd5 {[%clk 0:11:21]}  Rxd5 {[%clk 0:08:27]} 27. Rxd5 {[%clk 0:11:21]}  Qxd5 {[%clk 0:08:27]} 28. Rd1 {[%clk 0:11:21]}  Qc5 {[%clk 0:08:27]} 29. Be4 {[%clk 0:10:30]}  Rd8 {[%clk 0:08:49]} 30. a3 {[%clk 0:10:30]}  g6 {[%clk 0:08:49]} 31. Rxd8+ {[%clk 0:10:30]}  Bxd8 {[%clk 0:08:49]} 32. Qd2 {[%clk 0:10:30]}  Ke7 {[%clk 0:08:49]} 33. Qxh6 {[%clk 0:10:30]}  Qg1+ {[%clk 0:08:49]} 34. Ka2 {[%clk 0:10:30]}  Qxg3 {[%clk 0:08:49]} 35. Qe3 {[%clk 0:10:30]}  Kf8 {[%clk 0:08:49]} 36. Qc5+ {[%clk 0:08:26]}  Kg7 {[%clk 0:08:49]} 37. Qxb5 {[%clk 0:08:26]}  Qf4 {[%clk 0:08:49]} 38. Kb3 {[%clk 0:08:29]}  Kh6 {[%clk 0:06:16]} 39. Qc5 {[%clk 0:08:29]}  Kh5 {[%clk 0:06:01]} 40. Qd5 {[%clk 0:06:39]}  Bxh4 {[%clk 0:06:01]} 41. Qxa5 {[%clk 0:06:39]}  f5 {[%clk 0:06:01]} 42. Bc6 {[%clk 0:06:39]}  Kh6 {[%clk 0:05:01]} 43. Qb4 {[%clk 0:05:39]}  Kg5 {[%clk 0:05:01]} 44. Qe7+ {[%clk 0:05:34]}  Kh6 {[%clk 0:02:51]} 45. Qf8+ {[%clk 0:05:34]}  Kg5 {[%clk 0:02:51]} 46. a4 {[%clk 0:05:34]}  Qe3 {[%clk 0:02:51]} 47. a5 {[%clk 0:03:18]}  Bf2 {[%clk 0:02:41]} 48. Qe7+ {[%clk 0:03:18]}  Kf4 {[%clk 0:02:41]} 49. Qe6 {[%clk 0:03:18]}  Qc5 {[%clk 0:02:04]} 50. Ka4 {[%clk 0:01:26]}  g5 {[%clk 0:02:04]} 51. Bd7 {[%clk 0:01:26]}  e4 {[%clk 0:02:04]} 52. fxe4 {[%clk 0:01:26]}  fxe4 {[%clk 0:02:04]} 53. Qg4+ {[%clk 0:01:26]}  Ke3 {[%clk 0:02:04]} 54. Bb5 {[%clk 0:01:26]}  Bh4 {[%clk 0:00:53]} 55. Qg1+ {[%clk 0:01:17]}  Bf2 {[%clk 0:00:53]} 56. Qc1+ {[%clk 0:01:17]}  Kf3 {[%clk 0:00:53]} 57. b4 {[%clk 0:01:17]}  Qe3 {[%clk 0:00:53]} 58. Qh1+ {[%clk 0:01:17]}  Kf4 {[%clk 0:00:53]} 59. Bc6 {[%clk 0:01:17]}  Qd3 {[%clk 0:00:53]} 60. Qg2 {[%clk 0:01:17]}  e3 {[%clk 0:00:51]} 61. Qf3+ {[%clk 0:00:19]}  Ke5 {[%clk 0:00:51]} 62. Bb7 {[%clk 0:00:19]}  Qc2+ {[%clk 0:00:51]} 63. Kb5 {[%clk 0:00:19]}  Qxc3 {[%clk 0:00:51]} 64. Qe4+ {[%clk 0:00:19]}  Kf6 {[%clk 0:00:51]} 65. a6 {[%clk 0:00:19]}  Qe5+ {[%clk 0:00:51]} 66. Qxe5+ {[%clk 0:00:19]}  Kxe5 {[%clk 0:00:51]} 67. a7 {[%clk 0:00:19]}  e2 {[%clk 0:00:51]} 68. a8=Q {[%clk 0:00:19]}  e1=Q {[%clk 0:00:51]} 69. Qh8+ {[%clk 0:00:19]}  Kf5 {[%clk 0:00:11]} 70. Bc8+ {[%clk 0:00:23]}  Ke4 {[%clk 0:00:11]} 71. Qe8+ {[%clk 0:00:23]}  Kd4 {[%clk 0:00:11]} 72. Qh8+ {[%clk 0:00:23]}  Qe5+ {[%clk 0:00:11]} 1/2-1/2


[Site "http://www.Chess.com"]

[Event "FIDE World Rapid Chess Championship 2021"]
[White "Sanal, Vahap"]
[Black "Howell, David W L"]
[WhiteFideId "6300545"]
[BlackFideId "410608"]
[WhiteElo "2509"]
[BlackElo "2624"]
[Result "0-1"]
[Round "13"]
[TimeControl "900+10"]
[Date "2021.12.28"]
[WhiteClock "0:01:05"]
[BlackClock "0:00:55"]

1. e4 {[%clk 0:15:00]}  e5 {[%clk 0:15:00]} 2. Nc3 {[%clk 0:15:00]}  Nf6 {[%clk 0:15:00]} 3. Bc4 {[%clk 0:15:00]}  Nc6 {[%clk 0:15:04]} 4. d3 {[%clk 0:15:49]}  Na5 {[%clk 0:15:04]} 5. Nge2 {[%clk 0:15:49]}  Be7 {[%clk 0:15:04]} 6. O-O {[%clk 0:15:49]}  O-O {[%clk 0:15:04]} 7. a4 {[%clk 0:15:49]}  Nxc4 {[%clk 0:15:04]} 8. dxc4 {[%clk 0:15:49]}  d6 {[%clk 0:15:04]} 9. h3 {[%clk 0:15:49]}  c6 {[%clk 0:15:04]} 10. Qd3 {[%clk 0:15:49]}  Qc7 {[%clk 0:14:03]} 11. Bg5 {[%clk 0:16:14]}  h6 {[%clk 0:10:34]} 12. Be3 {[%clk 0:16:14]}  Be6 {[%clk 0:10:22]} 13. f4 {[%clk 0:15:15]}  exf4 {[%clk 0:06:18]} 14. Nxf4 {[%clk 0:15:15]}  Nd7 {[%clk 0:06:18]} 15. b3 {[%clk 0:15:15]}  Bf6 {[%clk 0:06:00]} 16. Nh5 {[%clk 0:13:27]}  Be5 {[%clk 0:04:50]} 17. Kh1 {[%clk 0:13:27]}  Nc5 {[%clk 0:04:50]} 18. Bxc5 {[%clk 0:10:27]}  dxc5 {[%clk 0:03:50]} 19. Rad1 {[%clk 0:10:27]}  Rad8 {[%clk 0:03:50]} 20. Qf3 {[%clk 0:10:27]}  Rxd1 {[%clk 0:03:50]} 21. Nxd1 {[%clk 0:10:27]}  Rd8 {[%clk 0:03:50]} 22. Ne3 {[%clk 0:10:27]}  Rd2 {[%clk 0:03:50]} 23. Nf4 {[%clk 0:06:15]}  Bxf4 {[%clk 0:03:33]} 24. Qxf4 {[%clk 0:06:15]}  Qxf4 {[%clk 0:03:33]} 25. Rxf4 {[%clk 0:06:15]}  Rd4 {[%clk 0:03:33]} 26. g4 {[%clk 0:06:11]}  g5 {[%clk 0:02:37]} 27. Rf3 {[%clk 0:06:11]}  Rxe4 {[%clk 0:02:37]} 28. Kg1 {[%clk 0:06:11]}  Kg7 {[%clk 0:02:37]} 29. Kf2 {[%clk 0:06:11]}  Kg6 {[%clk 0:02:37]} 30. a5 {[%clk 0:04:53]}  h5 {[%clk 0:02:29]} 31. a6 {[%clk 0:02:54]}  b6 {[%clk 0:00:48]} 32. gxh5+ {[%clk 0:02:54]}  Kxh5 {[%clk 0:00:48]} 33. Nf5 {[%clk 0:02:54]}  Bxf5 {[%clk 0:00:51]} 34. Rxf5 {[%clk 0:00:34]}  Kg6 {[%clk 0:00:51]} 35. Rf3 {[%clk 0:00:34]}  b5 {[%clk 0:00:51]} 36. Rd3 {[%clk 0:00:34]}  Rd4 {[%clk 0:00:51]} 37. Re3 {[%clk 0:00:34]}  bxc4 {[%clk 0:00:51]} 38. Re7 {[%clk 0:00:34]}  Rd2+ {[%clk 0:00:51]} 39. Ke3 {[%clk 0:00:34]}  Rxc2 {[%clk 0:00:51]} 40. bxc4 {[%clk 0:00:34]}  Rxc4 {[%clk 0:00:51]} 41. Rc7 {[%clk 0:00:34]}  Rc3+ {[%clk 0:00:51]} 42. Ke4 {[%clk 0:00:34]}  Rxh3 {[%clk 0:00:51]} 43. Rxc6+ {[%clk 0:01:05]}  f6 {[%clk 0:00:55]} 44. Rc7 {[%clk 0:01:05]}  Ra3 {[%clk 0:00:55]} 45. Rxa7 {[%clk 0:01:05]}  c4 {[%clk 0:00:55]} 46. Ra8 {[%clk 0:01:05]}  c3 {[%clk 0:00:55]} 47. Kd3 {[%clk 0:01:05]}  Kf5 {[%clk 0:00:55]} 48. a7 {[%clk 0:01:05]}  g4 {[%clk 0:00:55]} 49. Kc2 {[%clk 0:01:05]}  Kf4 {[%clk 0:00:55]} 50. Rf8 {[%clk 0:01:05]}  Rxa7 {[%clk 0:00:55]} 0-1


[Site "http://www.Chess.com"]

[Event "FIDE World Rapid Chess Championship 2021"]
[White "Petrosian, Tigran L."]
[Black "Narayanan.S.L, "]
[WhiteFideId "13301616"]
[BlackFideId "5058422"]
[WhiteElo "2621"]
[BlackElo "2482"]
[Result "1-0"]
[Round "13"]
[TimeControl "900+10"]
[Date "2021.12.28"]
[WhiteClock "0:00:46"]
[BlackClock "0:00:29"]

1. Nf3 {[%clk 0:15:00]}  Nf6 {[%clk 0:15:00]} 2. g3 {[%clk 0:15:00]}  c5 {[%clk 0:15:00]} 3. Bg2 {[%clk 0:15:00]}  Nc6 {[%clk 0:15:00]} 4. O-O {[%clk 0:14:57]}  e5 {[%clk 0:15:37]} 5. d3 {[%clk 0:14:57]}  d5 {[%clk 0:15:37]} 6. Bg5 {[%clk 0:14:57]}  Be7 {[%clk 0:15:37]} 7. Nfd2 {[%clk 0:14:57]}  Be6 {[%clk 0:15:37]} 8. Nc3 {[%clk 0:14:04]}  d4 {[%clk 0:15:05]} 9. Bxf6 {[%clk 0:14:04]}  gxf6 {[%clk 0:15:05]} 10. Nb5 {[%clk 0:12:58]}  Qd7 {[%clk 0:13:23]} 11. c3 {[%clk 0:12:58]}  a6 {[%clk 0:12:40]} 12. Na3 {[%clk 0:11:27]}  b5 {[%clk 0:12:40]} 13. cxd4 {[%clk 0:11:27]}  cxd4 {[%clk 0:10:21]} 14. Nc2 {[%clk 0:11:06]}  O-O {[%clk 0:10:21]} 15. e3 {[%clk 0:10:32]}  Rac8 {[%clk 0:09:35]} 16. Qh5 {[%clk 0:04:40]}  Rfd8 {[%clk 0:08:43]} 17. exd4 {[%clk 0:03:04]}  exd4 {[%clk 0:05:01]} 18. Be4 {[%clk 0:02:47]}  f5 {[%clk 0:05:01]} 19. Bg2 {[%clk 0:02:47]}  Ne5 {[%clk 0:05:01]} 20. Ne1 {[%clk 0:02:47]}  Rc5 {[%clk 0:05:11]} 21. Ndf3 {[%clk 0:01:52]}  Ng6 {[%clk 0:05:11]} 22. Ng5 {[%clk 0:01:52]}  Bxg5 {[%clk 0:05:11]} 23. Qxg5 {[%clk 0:01:52]}  Rdc8 {[%clk 0:05:11]} 24. Nf3 {[%clk 0:01:20]}  f4 {[%clk 0:02:46]} 25. Qh6 {[%clk 0:01:20]}  f6 {[%clk 0:02:46]} 26. b4 {[%clk 0:01:20]}  Rc3 {[%clk 0:02:46]} 27. Rfe1 {[%clk 0:01:20]}  Bf5 {[%clk 0:02:46]} 28. Nh4 {[%clk 0:01:20]}  Nxh4 {[%clk 0:01:48]} 29. Qxh4 {[%clk 0:00:34]}  fxg3 {[%clk 0:01:48]} 30. hxg3 {[%clk 0:00:34]}  Qd6 {[%clk 0:01:48]} 31. Be4 {[%clk 0:00:34]}  Bxe4 {[%clk 0:01:48]} 32. Rxe4 {[%clk 0:00:34]}  R3c7 {[%clk 0:00:29]} 33. Rae1 {[%clk 0:00:46]}  Rf8 {[%clk 0:00:29]} 34. Rxd4 {[%clk 0:00:46]}  Qc6 {[%clk 0:00:29]} 35. Rg4+ {[%clk 0:00:46]}  Kh8 {[%clk 0:00:29]} 36. Qh6 {[%clk 0:00:46]}  Rcf7 {[%clk 0:00:29]} 37. Re7 {[%clk 0:00:46]}  Re8 {[%clk 0:00:29]} 38. Rg7 {[%clk 0:00:46]} 1-0


[Site "http://www.Chess.com"]

[Event "FIDE World Rapid Chess Championship 2021"]
[White "Ponkratov, Pavel"]
[Black "Niemann, Hans Moke"]
[WhiteFideId "4157800"]
[BlackFideId "2093596"]
[WhiteElo "2614"]
[BlackElo "2327"]
[Result "1/2-1/2"]
[Round "13"]
[TimeControl "900+10"]
[Date "2021.12.28"]
[WhiteClock "0:02:50"]
[BlackClock "0:09:25"]

1. e4 {[%clk 0:15:00]}  c5 {[%clk 0:15:00]} 2. Nf3 {[%clk 0:15:00]}  d6 {[%clk 0:15:51]} 3. d4 {[%clk 0:15:37]}  cxd4 {[%clk 0:15:51]} 4. Nxd4 {[%clk 0:15:37]}  Nf6 {[%clk 0:15:51]} 5. Nc3 {[%clk 0:15:37]}  Nc6 {[%clk 0:15:51]} 6. Bg5 {[%clk 0:15:37]}  e6 {[%clk 0:15:51]} 7. Qd2 {[%clk 0:15:37]}  a6 {[%clk 0:15:51]} 8. f4 {[%clk 0:15:37]}  Bd7 {[%clk 0:15:51]} 9. Nf3 {[%clk 0:15:37]}  Be7 {[%clk 0:15:51]} 10. Bxf6 {[%clk 0:15:37]}  gxf6 {[%clk 0:15:07]} 11. f5 {[%clk 0:14:24]}  Qa5 {[%clk 0:15:07]} 12. Bd3 {[%clk 0:14:24]}  Ne5 {[%clk 0:15:07]} 13. O-O {[%clk 0:14:24]}  O-O-O {[%clk 0:15:07]} 14. Kh1 {[%clk 0:14:24]}  Kb8 {[%clk 0:15:07]} 15. b4 {[%clk 0:14:05]}  Qxb4 {[%clk 0:15:11]} 16. Bxa6 {[%clk 0:14:05]}  Qa5 {[%clk 0:15:11]} 17. Be2 {[%clk 0:11:24]}  Rc8 {[%clk 0:14:27]} 18. Nxe5 {[%clk 0:11:24]}  fxe5 {[%clk 0:14:27]} 19. fxe6 {[%clk 0:08:55]}  Bxe6 {[%clk 0:14:37]} 20. Rf3 {[%clk 0:08:55]}  Rc5 {[%clk 0:14:37]} 21. Qd3 {[%clk 0:08:55]}  Bg4 {[%clk 0:14:37]} 22. Nd5 {[%clk 0:08:26]}  Bxf3 {[%clk 0:12:43]} 23. Qxf3 {[%clk 0:08:26]}  Bg5 {[%clk 0:12:43]} 24. Bd3 {[%clk 0:08:26]}  Rf8 {[%clk 0:12:43]} 25. Qf5 {[%clk 0:07:32]}  h6 {[%clk 0:11:56]} 26. g3 {[%clk 0:07:32]}  Ka7 {[%clk 0:11:56]} 27. Rb1 {[%clk 0:07:32]}  Rb8 {[%clk 0:11:56]} 28. Qxf7 {[%clk 0:07:32]}  Qxa2 {[%clk 0:11:56]} 29. Qf1 {[%clk 0:07:32]}  Rf8 {[%clk 0:11:32]} 30. Qe1 {[%clk 0:06:35]}  Bd2 {[%clk 0:11:32]} 31. Qd1 {[%clk 0:06:35]}  Rxd5 {[%clk 0:10:37]} 32. Ra1 {[%clk 0:05:56]}  Qxa1 {[%clk 0:10:37]} 33. Qxa1+ {[%clk 0:05:56]}  Ra5 {[%clk 0:10:37]} 34. Qg1+ {[%clk 0:05:56]}  Rc5 {[%clk 0:10:37]} 35. Kg2 {[%clk 0:05:56]}  Rf6 {[%clk 0:10:37]} 36. Qd1 {[%clk 0:05:56]}  Be3 {[%clk 0:10:37]} 37. Qa1+ {[%clk 0:05:56]}  Kb8 {[%clk 0:10:37]} 38. Qa4 {[%clk 0:05:56]}  Rf2+ {[%clk 0:10:37]} 39. Kh3 {[%clk 0:05:56]}  Rc6 {[%clk 0:09:36]} 40. Qb3 {[%clk 0:05:35]}  Bd4 {[%clk 0:09:36]} 41. Qg8+ {[%clk 0:05:35]}  Ka7 {[%clk 0:09:36]} 42. Qa2+ {[%clk 0:05:35]}  Kb6 {[%clk 0:09:36]} 43. Qb3+ {[%clk 0:05:35]}  Kc7 {[%clk 0:09:36]} 44. Qg8 {[%clk 0:05:35]}  Be3 {[%clk 0:09:36]} 45. Qb3 {[%clk 0:05:35]}  Rb6 {[%clk 0:09:51]} 46. Bb5 {[%clk 0:04:52]}  Bc5 {[%clk 0:09:51]} 47. Qc4 {[%clk 0:04:52]}  Rd2 {[%clk 0:09:51]} 48. Qf7+ {[%clk 0:02:50]}  Kb8 {[%clk 0:09:25]} 49. Qg8+ {[%clk 0:02:50]}  Ka7 {[%clk 0:09:25]} 50. Qa2+ {[%clk 0:02:50]} 1/2-1/2


[Site "http://www.Chess.com"]

[Event "FIDE World Rapid Chess Championship 2021"]
[White "Fridman, Daniel"]
[Black "Hovhannisyan, Robert"]
[WhiteFideId "11600454"]
[BlackFideId "13302507"]
[WhiteElo "2542"]
[BlackElo "2613"]
[Result "1/2-1/2"]
[Round "13"]
[TimeControl "900+10"]
[Date "2021.12.28"]
[WhiteClock "0:00:26"]
[BlackClock "0:00:21"]

1. d4 {[%clk 0:15:00]}  d5 {[%clk 0:15:00]} 2. c4 {[%clk 0:15:00]}  c6 {[%clk 0:15:00]} 3. Nf3 {[%clk 0:15:00]}  Nf6 {[%clk 0:15:00]} 4. Qb3 {[%clk 0:15:26]}  e6 {[%clk 0:15:38]} 5. Bf4 {[%clk 0:15:26]}  Be7 {[%clk 0:15:38]} 6. e3 {[%clk 0:15:26]}  O-O {[%clk 0:15:38]} 7. Nc3 {[%clk 0:15:26]}  Nbd7 {[%clk 0:15:38]} 8. h3 {[%clk 0:15:26]}  b6 {[%clk 0:13:51]} 9. cxd5 {[%clk 0:15:00]}  Nxd5 {[%clk 0:13:51]} 10. Nxd5 {[%clk 0:15:00]}  exd5 {[%clk 0:13:51]} 11. Bd3 {[%clk 0:15:00]}  Bb7 {[%clk 0:13:51]} 12. O-O {[%clk 0:15:00]}  Re8 {[%clk 0:13:02]} 13. Rac1 {[%clk 0:14:04]}  h6 {[%clk 0:13:02]} 14. Rfd1 {[%clk 0:14:04]}  Bf8 {[%clk 0:13:02]} 15. Re1 {[%clk 0:12:28]}  c5 {[%clk 0:12:24]} 16. Bb5 {[%clk 0:11:24]}  c4 {[%clk 0:11:46]} 17. Qa4 {[%clk 0:10:14]}  Re7 {[%clk 0:09:39]} 18. Bc6 {[%clk 0:09:03]}  Qc8 {[%clk 0:09:27]} 19. Bxb7 {[%clk 0:09:03]}  Qxb7 {[%clk 0:09:27]} 20. Bd6 {[%clk 0:09:03]}  Re6 {[%clk 0:09:04]} 21. Bxf8 {[%clk 0:05:51]}  Rxf8 {[%clk 0:09:04]} 22. Qb4 {[%clk 0:05:51]}  b5 {[%clk 0:09:02]} 23. b3 {[%clk 0:06:03]}  Qb6 {[%clk 0:09:02]} 24. bxc4 {[%clk 0:06:03]}  bxc4 {[%clk 0:09:02]} 25. Qa4 {[%clk 0:06:03]}  Qc6 {[%clk 0:09:02]} 26. Qxc6 {[%clk 0:06:03]}  Rxc6 {[%clk 0:09:02]} 27. e4 {[%clk 0:05:21]}  dxe4 {[%clk 0:06:21]} 28. Rxe4 {[%clk 0:05:21]}  c3 {[%clk 0:06:21]} 29. Re7 {[%clk 0:05:21]}  Rd8 {[%clk 0:06:04]} 30. Kf1 {[%clk 0:03:56]}  Rc4 {[%clk 0:03:30]} 31. Ke2 {[%clk 0:03:59]}  Kf8 {[%clk 0:03:30]} 32. Kd3 {[%clk 0:03:59]}  Rc7 {[%clk 0:01:40]} 33. Re2 {[%clk 0:02:03]}  Nc5+ {[%clk 0:01:40]} 34. Kc2 {[%clk 0:02:03]}  Ne6 {[%clk 0:01:40]} 35. Rb1 {[%clk 0:02:03]}  g5 {[%clk 0:01:40]} 36. Re3 {[%clk 0:01:46]}  Nxd4+ {[%clk 0:00:48]} 37. Nxd4 {[%clk 0:01:46]}  Rxd4 {[%clk 0:00:48]} 38. Rxc3 {[%clk 0:01:46]}  Rcd7 {[%clk 0:00:48]} 39. Kb2 {[%clk 0:01:46]}  Kg7 {[%clk 0:00:48]} 40. Rbc1 {[%clk 0:01:46]}  Kg6 {[%clk 0:00:48]} 41. R1c2 {[%clk 0:01:46]}  f6 {[%clk 0:00:48]} 42. Rb3 {[%clk 0:00:42]}  h5 {[%clk 0:00:25]} 43. a3 {[%clk 0:00:42]}  h4 {[%clk 0:00:25]} 44. Rb4 {[%clk 0:00:42]}  Rd1 {[%clk 0:00:25]} 45. f4 {[%clk 0:00:42]}  R1d3 {[%clk 0:00:25]} 46. fxg5 {[%clk 0:00:42]}  fxg5 {[%clk 0:00:25]} 47. Rc6+ {[%clk 0:00:42]}  Kf5 {[%clk 0:00:25]} 48. Rc5+ {[%clk 0:00:42]}  R7d5 {[%clk 0:00:25]} 49. Rxd5+ {[%clk 0:00:42]}  Rxd5 {[%clk 0:00:25]} 50. Kc2 {[%clk 0:00:42]}  Ra5 {[%clk 0:00:30]} 51. a4 {[%clk 0:00:45]}  Rd5 {[%clk 0:00:30]} 52. Rg4 {[%clk 0:00:45]}  Re5 {[%clk 0:00:30]} 53. g3 {[%clk 0:00:45]}  hxg3 {[%clk 0:00:30]} 54. Rxg3 {[%clk 0:00:45]}  Re4 {[%clk 0:00:30]} 55. Kb3 {[%clk 0:00:45]}  Kg6 {[%clk 0:00:30]} 56. Rc3 {[%clk 0:00:45]}  Re7 {[%clk 0:00:30]} 57. Kb4 {[%clk 0:00:45]}  Re5 {[%clk 0:00:30]} 58. a5 {[%clk 0:00:45]}  Re7 {[%clk 0:00:30]} 59. Kb5 {[%clk 0:00:45]}  Kh5 {[%clk 0:00:21]} 60. Rc8 {[%clk 0:00:26]}  Rh7 {[%clk 0:00:21]} 61. Ka6 {[%clk 0:00:26]}  Kh4 {[%clk 0:00:21]} 62. Rg8 {[%clk 0:00:26]}  Rh5 {[%clk 0:00:21]} 63. Kxa7 {[%clk 0:00:26]}  Kxh3 {[%clk 0:00:21]} 64. a6 {[%clk 0:00:26]}  g4 {[%clk 0:00:21]} 65. Kb6 {[%clk 0:00:26]}  Rh6+ {[%clk 0:00:21]} 66. Kb5 {[%clk 0:00:26]}  Rxa6 {[%clk 0:00:21]} 67. Kxa6 {[%clk 0:00:26]}  g3 {[%clk 0:00:21]} 68. Kb5 {[%clk 0:00:26]}  g2 {[%clk 0:00:21]} 69. Kc4 {[%clk 0:00:26]}  Kh2 {[%clk 0:00:21]} 70. Kd3 {[%clk 0:00:26]}  g1=Q {[%clk 0:00:21]} 71. Rxg1 {[%clk 0:00:26]}  Kxg1 {[%clk 0:00:21]} 72. Ke4 {[%clk 0:00:26]} 1/2-1/2


[Site "http://www.Chess.com"]